Departmental family,Entity,Date Paid,Expense type,Expense Area,Supplier,Transaction Number, Amount , Description , Supplier Type , Expenditure Type 
UK Statistics Authority,Office for National Statistics,03-Jan-18,ICT Outsourcing & Maintenance/Support,Digital Services & Technology,RSM Partners Ltd,66310,"50,770.50", Information Management Services, SME , Programme 
UK Statistics Authority,Office for National Statistics,03-Jan-18,Facilities Management Contract Payments,"Finance, Audit & Business Development",Vinci Construction UK Limited,66312,"72,920.55", Facilities Management , Large , Programme 
UK Statistics Authority,Office for National Statistics,03-Jan-18,Major Works Over 25K,Business Services & Development,Vinci Construction UK Limited,66312,"6,666.11", Major Works Newport, Large , Programme 
UK Statistics Authority,Office for National Statistics,03-Jan-18,Major Works Over 25K,Business Services & Development,Vinci Construction UK Limited,66312,"4,804.31", Major WorksTitchfield, Large , Programme 
UK Statistics Authority,Office for National Statistics,03-Jan-18,Postage,Data Collection,UK Mail,66317,"44,828.66", Outgoing Postage, Large , Programme 
UK Statistics Authority,Office for National Statistics,03-Jan-18,Consultancy,Census,Deloitte,66321,"101,222.40", Census Information Management Services, SME , Programme 
UK Statistics Authority,Office for National Statistics,03-Jan-18,Surveys,Economic Statistics Transformation,London Economics,66328,"47,790.00", Statistical Services, SME , Programme 
UK Statistics Authority,Office for National Statistics,04-Jan-18,Telecommunications,Digital Services & Technology,Vodafone Corporate Ltd,66504,"70,645.96", Information Management Services, Large , Programme 
UK Statistics Authority,Office for National Statistics,04-Jan-18,ICT Outsourcing & Maintenance/Support,Digital Services & Technology,Equiniti Limited,66511,"2,280.00", Information Management Services, Large , Programme 
UK Statistics Authority,Office for National Statistics,04-Jan-18,ICT Outsourcing & Maintenance/Support,Digital Services & Technology,Equiniti Limited,66511,"44,932.80", Information Management Services, Large , Programme 
UK Statistics Authority,Office for National Statistics,08-Jan-18,Facilities Management Contract Payments,"Finance, Audit & Business Development",Vinci Construction UK Limited,66735,"58,791.17", Facilities Management , Large , Programme 
UK Statistics Authority,Office for National Statistics,08-Jan-18,Consultancy,Economic Statistics Transformation,NIESR,66744,"333,709.98", Statistical Services, SME , Programme 
UK Statistics Authority,Office for National Statistics,08-Jan-18,Travel & Subsistence,"Finance, Audit & Business Development",Calder World of Travel,66746,"43,485.06", Travel and Accommodation Booking Service , SME , Programme 
UK Statistics Authority,Office for National Statistics,08-Jan-18,Non-IT Contractual Payments,Census,Pinsent Masons,66751,"81,453.00", Census Information Management Services, Large , Programme 
UK Statistics Authority,Office for National Statistics,08-Jan-18,Capital Major Works >25K,Business Services & Development,Paramount Office Interiors Ltd,66752,927.05, Major Works Titchfield, SME , Programme 
UK Statistics Authority,Office for National Statistics,08-Jan-18,Major Works Over 25K,Business Services & Development,Paramount Office Interiors Ltd,66752,"31,035.65", Major Works Titchfield, SME , Programme 
UK Statistics Authority,Office for National Statistics,08-Jan-18,Major Works Over 25K,Business Services & Development,Paramount Office Interiors Ltd,66752,"49,751.68", Major Works Newport, SME , Programme 
UK Statistics Authority,Office for National Statistics,09-Jan-18,Training & Development,Business Services & Development,Matthew Cabot,67098,"3,442.20", Training and Development, Large , Programme 
UK Statistics Authority,Office for National Statistics,09-Jan-18,Training & Development,Business Services & Development,Matthew Cabot,67098,"1,290.60", Training and Development, Large , Programme 
UK Statistics Authority,Office for National Statistics,09-Jan-18,Training & Development,Business Services & Development,Matthew Cabot,67098,"6,351.00", Training and Development, Large , Programme 
UK Statistics Authority,Office for National Statistics,09-Jan-18,Training & Development,Business Services & Development,Matthew Cabot,67098,"4,310.40", Training and Development, Large , Programme 
UK Statistics Authority,Office for National Statistics,09-Jan-18,Training & Development,Business Services & Development,Matthew Cabot,67098,"28,822.20", Training and Development, Large , Programme 
UK Statistics Authority,Office for National Statistics,09-Jan-18,Consultancy,Communications,Engine Partners UK Llp,67100,"35,299.79", Census Information Management Services, Large , Programme 
UK Statistics Authority,Office for National Statistics,09-Jan-18,ICT Outsourcing & Maintenance/Support,Digital Services & Technology,Lexmark International Ltd,67106,"39,277.87", Information Management Services, Large , Programme 
UK Statistics Authority,Office for National Statistics,09-Jan-18,ICT Outsourcing & Maintenance/Support,Digital Services & Technology,Somerford Associates,67107,"81,000.00", Information Management Services, Large , Programme 
UK Statistics Authority,Office for National Statistics,09-Jan-18,IT Contractual Services,Digital Services & Technology,Methods Digital Ltd,67109,"197,100.00", Information Management Services, Large , Programme 
UK Statistics Authority,Office for National Statistics,09-Jan-18,IT Contractual Services,Digital Services & Technology,Methods Digital Ltd,67109,"10,800.00", Information Management Services, Large , Programme 
UK Statistics Authority,Office for National Statistics,09-Jan-18,Childcare Services,"Finance, Audit & Business Development",Computershare Voucher Services,67112,"39,435.54", Childcare Vouchers , Large , Programme 
UK Statistics Authority,Office for National Statistics,09-Jan-18,Purchase of Laptops,Digital Services & Technology,Total Computer Networks Ltd,67121,"28,401.00", Computer Hardware, Large , Programme 
UK Statistics Authority,Office for National Statistics,10-Jan-18,Questionnaire Development,Public Policy Analysis,Kantar Public,67122,"97,282.80", Information Management Services, SME , Programme 
UK Statistics Authority,Office for National Statistics,10-Jan-18,Contractors,Business Services & Development,HLG Services (UK) Ltd T/A HLG Associates,67124,"33,642.00", Census Information Management Services, SME , Programme 
UK Statistics Authority,Office for National Statistics,10-Jan-18,Consultancy,Census,Deloitte,67141,"159,480.00", Census Information ManagementServices, SME , Programme 
UK Statistics Authority,Office for National Statistics,10-Jan-18,Consultancy,Census,Deloitte,67141,"35,040.00", Census Information ManagementServices, SME , Programme 
UK Statistics Authority,Office for National Statistics,10-Jan-18,ICT Outsourcing & Maintenance/Support,"Methods, Data & Research",University of the West of England,67142,"25,767.60", Information Management Services , Large , Programme 
UK Statistics Authority,Office for National Statistics,10-Jan-18,Electricity,Business Services & Development,EDF Energy,30000670,"57,262.61", Electricity Newport, Large , Programme 
UK Statistics Authority,Office for National Statistics,10-Jan-18,Electricity,Business Services & Development,EDF Energy,30000670,"24,351.45", Electricity Drummond Gate, Large , Programme 
UK Statistics Authority,Office for National Statistics,11-Jan-18,Surveys,Data Collection,Kantar Public,67476,"19,084.80", Information Management Services, SME , Programme 
UK Statistics Authority,Office for National Statistics,11-Jan-18,Surveys,National Accounts And Economic Statistics,Kantar Public,67476,"1,663.20", Information Management Services, SME , Programme 
UK Statistics Authority,Office for National Statistics,11-Jan-18,Surveys,National Accounts And Economic Statistics,Kantar Public,67476,"185,464.80", Information Management Services, SME , Programme 
UK Statistics Authority,Office for National Statistics,11-Jan-18,Surveys,Public Policy Analysis,Kantar Public,67476,"378,619.20", Information Management Services, SME , Programme 
UK Statistics Authority,Office for National Statistics,11-Jan-18,Surveys,Census,IFF Research,67477,"26,343.60", Census Statistical Services, Large , Programme 
UK Statistics Authority,Office for National Statistics,11-Jan-18,ICT Outsourcing & Maintenance/Support,Digital Services & Technology,RSM Partners Ltd,67481,"52,453.50", Information Management Services , SME , Programme 
UK Statistics Authority,Office for National Statistics,11-Jan-18,Major Works Over 25K,Business Services & Development,Vinci Construction UK Limited,67483,"32,744.40", Major Works Newport, Large , Programme 
UK Statistics Authority,Office for National Statistics,11-Jan-18,ICT Outsourcing & Maintenance/Support,Digital Services & Technology,SCC,67487,"120,847.72", Information Management Services, Large , Programme 
UK Statistics Authority,Office for National Statistics,11-Jan-18,Software Pool 4Yr,Digital Services & Technology,SCC,67487,"350,932.84", Information Management Services, Large , Programme 
UK Statistics Authority,Office for National Statistics,11-Jan-18,IT Purchases >2K,Digital Services & Technology,Stone Computers,67492,"31,080.00", Computer Hardware, Large , Programme 
UK Statistics Authority,Office for National Statistics,11-Jan-18,Furniture >2K Per Item,Business Services & Development,The Senator Group,67495,"87,166.12", Major Works Titchfield, Large , Programme 
UK Statistics Authority,Office for National Statistics,11-Jan-18,IT Contractual Services,Digital Services & Technology,Methods Digital Ltd,67496,"36,225.00", Information Management Services, Large , Programme 
UK Statistics Authority,Office for National Statistics,11-Jan-18,IT Contractual Services,Digital Services & Technology,Methods Digital Ltd,67496,"28,800.00", Information Management Services, Large , Programme 
UK Statistics Authority,Office for National Statistics,11-Jan-18,IT Contractual Services,Digital Services & Technology,Methods Digital Ltd,67496,"28,080.00", Information Management Services, Large , Programme 
UK Statistics Authority,Office for National Statistics,11-Jan-18,IT Contractual Services,Digital Services & Technology,Methods Digital Ltd,67496,"47,250.00", Information Management Services, Large , Programme 
UK Statistics Authority,Office for National Statistics,11-Jan-18,Contractors,Census,Certes Computing Ltd,67497,"2,683.82", Census Information Management Services, SME , Programme 
UK Statistics Authority,Office for National Statistics,11-Jan-18,Contractors,Census,Certes Computing Ltd,67497,"10,735.30", Census Information Management Services, SME , Programme 
UK Statistics Authority,Office for National Statistics,11-Jan-18,Contractors,Digital Services & Technology,Certes Computing Ltd,67497,"24,124.06", Information Management Services, SME , Programme 
UK Statistics Authority,Office for National Statistics,11-Jan-18,Contractors,Digital Services & Technology,Certes Computing Ltd,67497,"11,582.40", Information Management Services, SME , Programme 
UK Statistics Authority,Office for National Statistics,11-Jan-18,Capital Major Works >25K,Business Services & Development,Paramount Office Interiors Ltd,67499,"61,348.94", Major Works Titchfield, SME , Programme 
UK Statistics Authority,Office for National Statistics,11-Jan-18,Procurement Card,"Finance, Audit & Business Development",Royal Bank of Scotland,67500,"52,405.31", Multiple Procurement Card Purchases  , Large , Programme 
UK Statistics Authority,Office for National Statistics,11-Jan-18,Stationery,"Finance, Audit & Business Development",Royal Bank of Scotland,67500,"4,391.64", Multiple Procurement Card Stationery Purchases  , Large , Programme 
UK Statistics Authority,Office for National Statistics,11-Jan-18,ICT Outsourcing & Maintenance/Support,Digital Services & Technology,ServiceNow,67507,"83,191.68", Information Management Services, Large , Programme 
UK Statistics Authority,Office for National Statistics,11-Jan-18,Welsh Question Development Testing,Census,Opinion Research Services,67511,"31,032.48", Census Management Informaiton Services, SME , Programme 
UK Statistics Authority,Office for National Statistics,11-Jan-18,Dilapidation Payment,"Finance, Audit & Business Development",D G Lease Limited,30000683,"1,299,405.00", Drummond Gate Lease Payment, SME , Programme 
UK Statistics Authority,Office for National Statistics,11-Jan-18,Private Medical Insurance,ONS Corporate Funds,Aviva,30000684,"30,326.97", TUPE Legislative Commitments, Large , Programme 
UK Statistics Authority,Office for National Statistics,11-Jan-18,Insurance Premiums,Digital Services & Technology,Legal & General Assurance Society,30000685,"28,643.64", TUPE Legislative Commitments, Large , Programme 
UK Statistics Authority,Office for National Statistics,11-Jan-18,ICT Outsourcing & Maintenance/Support,Digital Services & Technology,Amazon Web Services Inc,30000687,"43,176.09", Web Services, Large , Programme 
UK Statistics Authority,Office for National Statistics,12-Jan-18,Non-IT Contractual Payments,Data Collection,NatCen Social Research,67526,"27,040.03", Statistical Services, Large , Programme 
UK Statistics Authority,Office for National Statistics,12-Jan-18,Contractors,Business Services & Development,Parity Resources Limited,67536,"14,097.60", Information Management Services, Large , Programme 
UK Statistics Authority,Office for National Statistics,12-Jan-18,Contractors,Business Services & Development,Parity Resources Limited,67536,"10,893.60", Information Management Services, Large , Programme 
UK Statistics Authority,Office for National Statistics,12-Jan-18,Contractors,Census,Parity Resources Limited,67536,"23,068.80", Census Management Informaiton Services, Large , Programme 
UK Statistics Authority,Office for National Statistics,12-Jan-18,Contractors,Data Collection,Parity Resources Limited,67536,"13,264.56", Information Management Services, Large , Programme 
UK Statistics Authority,Office for National Statistics,12-Jan-18,Contractors,Digital Services & Technology,Parity Resources Limited,67536,"11,534.40", Information Management Services, Large , Programme 
UK Statistics Authority,Office for National Statistics,12-Jan-18,Contractors,Digital Services & Technology,Parity Resources Limited,67536,"45,657.00", Information Management Services, Large , Programme 
UK Statistics Authority,Office for National Statistics,12-Jan-18,Contractors,Digital Services & Technology,Parity Resources Limited,67536,"29,324.70", Information Management Services, Large , Programme 
UK Statistics Authority,Office for National Statistics,12-Jan-18,Contractors,Economic Statistics Transformation,Parity Resources Limited,67536,"8,971.20", Information Management Services, Large , Programme 
UK Statistics Authority,Office for National Statistics,12-Jan-18,Short-Term Contract & Agency Staff ,Business Services & Development,Parity Resources Limited,67536,"1,998.24", Information Management Services, Large , Programme 
UK Statistics Authority,Office for National Statistics,12-Jan-18,Short-Term Contract & Agency Staff ,Census,Parity Resources Limited,67536,"2,600.40", Census Management Informaiton Services, Large , Programme 
UK Statistics Authority,Office for National Statistics,12-Jan-18,Short-Term Contract & Agency Staff ,Communications,Parity Resources Limited,67536,"12,066.84", Information Management Services, Large , Programme 
UK Statistics Authority,Office for National Statistics,12-Jan-18,Short-Term Contract & Agency Staff ,Data Collection,Parity Resources Limited,67536,"3,498.79", Information Management Services, Large , Programme 
UK Statistics Authority,Office for National Statistics,12-Jan-18,Short-Term Contract & Agency Staff ,Data Collection,Parity Resources Limited,67536,"2,543.66", Information Management Services, Large , Programme 
UK Statistics Authority,Office for National Statistics,12-Jan-18,Rent Payable,Business Services & Development,D G Lease Limited,67539,"715,410.30", Drummond Gate Rent, SME , Programme 
UK Statistics Authority,Office for National Statistics,15-Jan-18,Telecommunications,Data Collection,BT Global Services,67857,"7,629.77", Information Management Services, Large , Programme 
UK Statistics Authority,Office for National Statistics,15-Jan-18,Telecommunications,Digital Services & Technology,BT Global Services,67857,"22,632.00", Information Management Services, Large , Programme 
UK Statistics Authority,Office for National Statistics,16-Jan-18,Contractors,Digital Services & Technology,E Synergy Solutions,68109,"166,824.00", Information Management Services , SME , Programme 
UK Statistics Authority,Office for National Statistics,16-Jan-18,ICT Outsourcing & Maintenance/Support,Digital Services & Technology,E Synergy Solutions,68109,"8,100.00", Information Management Services , SME , Programme 
UK Statistics Authority,Office for National Statistics,16-Jan-18,IT Contractual Services,Digital Services & Technology,E Synergy Solutions,68109,"8,580.00", Information Management Services , SME , Programme 
UK Statistics Authority,Office for National Statistics,16-Jan-18,IT Contractual Services,Digital Services & Technology,E Synergy Solutions,68109,"46,440.00", Information Management Services , SME , Programme 
UK Statistics Authority,Office for National Statistics,16-Jan-18,Contractors,Digital Services & Technology,Medley Business Solutions Ltd,68115,"10,929.60", Information Management Services, Large , Programme 
UK Statistics Authority,Office for National Statistics,16-Jan-18,Non-IT Contractual Payments,Digital Services & Technology,Medley Business Solutions Ltd,68115,"18,101.06", Information Management Services, Large , Programme 
UK Statistics Authority,Office for National Statistics,16-Jan-18,Purchase of Laptops,Digital Services & Technology,Insight Direct,68119,"43,878.00", Information Management Services, Large , Programme 
UK Statistics Authority,Office for National Statistics,17-Jan-18,Travel & Subsistence,"Finance, Audit & Business Development",Redfern Travel,68132,"78,600.47", Travel and Accommodation Booking Service , SME , Programme 
UK Statistics Authority,Office for National Statistics,17-Jan-18,Consultancy,Business Services & Development,Bramble.CC,68134,"268,720.80", Information Management Services, SME , Programme 
UK Statistics Authority,Office for National Statistics,17-Jan-18,IT Contractual Services,Digital Services & Technology,QA Ltd,68139,"51,840.00", Information Management Services, Large , Programme 
UK Statistics Authority,Office for National Statistics,17-Jan-18,Electricity,Business Services & Development,EDF Energy,30000694,"27,063.00", Electricity Newport, Large , Programme 
UK Statistics Authority,Office for National Statistics,17-Jan-18,Electricity,Business Services & Development,EDF Energy,30000696,"29,178.76", Electricity Newport, Large , Programme 
UK Statistics Authority,Office for National Statistics,19-Jan-18,Software Pool 4Yr,"Finance, Audit & Business Development",Oracle Corporation UK Ltd,68538,"115,135.73", Cloud Services, Large , Programme 
UK Statistics Authority,Office for National Statistics,19-Jan-18,IT Contractual Services,Digital Services & Technology,QA Ltd,68548,"110,220.00", Information Management Services, Large , Programme 
UK Statistics Authority,Office for National Statistics,19-Jan-18,ICT Outsourcing & Maintenance/Support,Digital Services & Technology,Amazon Web Services Inc,30000697,"38,143.36", Web Services, Large , Programme 
UK Statistics Authority,Office for National Statistics,19-Jan-18,ICT Outsourcing & Maintenance/Support,Digital Services & Technology,Amazon Web Services Inc,30000698,"40,826.04", Web Services, Large , Programme 
UK Statistics Authority,Office for National Statistics,22-Jan-18,Telecommunications,Digital Services & Technology,Level 3 Communications UK Limited,69163,"39,920.01", Information Management Services, Large , Programme 
UK Statistics Authority,Office for National Statistics,22-Jan-18,Software Licence Renewal,Digital Services & Technology,CBS Netherlands - Central Bureau Voor De Statistiek,90000941,"173,297.05", Software License, Large , Programme 
UK Statistics Authority,Office for National Statistics,23-Jan-18,Contractors,Business Services & Development,LA International,69183,"4,857.79", Information Management Services, SME , Programme 
UK Statistics Authority,Office for National Statistics,23-Jan-18,Contractors,Digital Services & Technology,LA International,69183,"20,849.66", Information Management Services, SME , Programme 
UK Statistics Authority,Office for National Statistics,23-Jan-18,Contractors,"Methods, Data & Research",LA International,69183,"8,458.27", Information Management Services, SME , Programme 
UK Statistics Authority,Office for National Statistics,23-Jan-18,Contractors,Economic Statistics Transformation,Parity Resources Limited,69187,"10,316.88", Information Management Services, Large , Programme 
UK Statistics Authority,Office for National Statistics,23-Jan-18,ICT Outsourcing & Maintenance/Support,Communications,Parity Resources Limited,69187,"10,893.60", Information Management Services, Large , Programme 
UK Statistics Authority,Office for National Statistics,23-Jan-18,Short-Term Contract & Agency Staff ,Census,Parity Resources Limited,69187,"11,566.44", Census Information ManagementServices, Large , Programme 
UK Statistics Authority,Office for National Statistics,24-Jan-18,Contractors,Digital Services & Technology,E Synergy Solutions,69189,"13,860.00", Information Management Services , SME , Programme 
UK Statistics Authority,Office for National Statistics,24-Jan-18,IT Contractual Services,Digital Services & Technology,E Synergy Solutions,69189,"12,096.00", Information Management Services , SME , Programme 
UK Statistics Authority,Office for National Statistics,24-Jan-18,Accommodation & Building Management,Business Services & Development,Vinci Construction UK Limited,69192,"30,000.00", Facilities Management , Large , Programme 
UK Statistics Authority,Office for National Statistics,24-Jan-18,Travel & Subsistence,"Finance, Audit & Business Development",Redfern Travel,69194,"56,368.93", Travel and Accommodation Booking Service , SME , Programme 
UK Statistics Authority,Office for National Statistics,24-Jan-18,Consultancy,Business Services & Development,Bramble.CC,69195,"184,300.80", Information Management Services, SME , Programme 
UK Statistics Authority,Office for National Statistics,24-Jan-18,IT Contractual Services,Digital Services & Technology,Methods Digital Ltd,69197,"17,550.00", Information Management Services, Large , Programme 
UK Statistics Authority,Office for National Statistics,24-Jan-18,IT Contractual Services,Digital Services & Technology,Methods Digital Ltd,69197,"25,500.00", Information Management Services, Large , Programme 
UK Statistics Authority,Office for National Statistics,24-Jan-18,Contractors,Business Services & Development,LA International,69198,"3,036.12", Information Management Services, SME , Programme 
UK Statistics Authority,Office for National Statistics,24-Jan-18,Contractors,Digital Services & Technology,LA International,69198,"9,611.64", Information Management Services, SME , Programme 
UK Statistics Authority,Office for National Statistics,24-Jan-18,Contractors,Digital Services & Technology,LA International,69198,"26,462.16", Information Management Services, SME , Programme 
UK Statistics Authority,Office for National Statistics,24-Jan-18,IT Contractual Services,Digital Services & Technology,QA Ltd,69199,"169,470.00", Information Management Services, Large , Programme 
UK Statistics Authority,Office for National Statistics,24-Jan-18,ICT Outsourcing & Maintenance/Support,Census,Totalmobile Ltd,69205,"143,186.40", Field Work Management Tool, SME , Programme 
UK Statistics Authority,Office for National Statistics,25-Jan-18,Contractors,Economic Statistics Transformation,Mango Solutions,69538,"9,997.45", Information Management Services, SME , Programme 
UK Statistics Authority,Office for National Statistics,25-Jan-18,Contractors,Economic Statistics Transformation,Mango Solutions,69538,"7,466.98", Information Management Services, SME , Programme 
UK Statistics Authority,Office for National Statistics,25-Jan-18,ICT Outsourcing & Maintenance/Support,Data Science Campus,Mango Solutions,69538,"28,084.13", Information Management Services, SME , Programme 
UK Statistics Authority,Office for National Statistics,25-Jan-18,Training & Development,Business Services & Development,Mango Solutions,69538,"2,393.26", Information Management Services, SME , Programme 
UK Statistics Authority,Office for National Statistics,25-Jan-18,Training & Development,Data Science Campus,Mango Solutions,69538,"18,880.18", Information Management Services, SME , Programme 
UK Statistics Authority,Office for National Statistics,25-Jan-18,ICT Outsourcing & Maintenance/Support,Digital Services & Technology,Automated Intelligence Ltd,69541,"38,610.00", Information Management Services, SME , Programme 
UK Statistics Authority,Office for National Statistics,25-Jan-18,High Street Vouchers,Data Collection,Park Retail Ltd,69542,"67,536.72", Social Surveys Incentive Vouchers, Large , Programme 
UK Statistics Authority,Office for National Statistics,25-Jan-18,Surveys,Data Collection,Ipsos MORI,69556,"25,758.00", Statistical Services, Large , Programme 
UK Statistics Authority,Office for National Statistics,25-Jan-18,ICT Hardware,Digital Services & Technology,Centerprise International Ltd,69558,"28,422.00", Computer Hardware, Large , Programme 
UK Statistics Authority,Office for National Statistics,25-Jan-18,Non-IT Contractual Payments,Census,Pinsent Masons,69563,"26,058.00", Census Management Information Services, Large , Programme 
UK Statistics Authority,Office for National Statistics,25-Jan-18,Consultancy,Digital Services & Technology,Computacenter (UK) Limited,69566,"3,184.01", Census Manangment Information Services, Large , Programme 
UK Statistics Authority,Office for National Statistics,25-Jan-18,ICT Outsourcing & Maintenance/Support,Digital Services & Technology,Computacenter (UK) Limited,69566,"7,785.78", Information Management Services, Large , Programme 
UK Statistics Authority,Office for National Statistics,25-Jan-18,IT Purchases >2K,Digital Services & Technology,Computacenter (UK) Limited,69566,"44,107.80", Information Management Services, Large , Programme 
UK Statistics Authority,Office for National Statistics,25-Jan-18,Software Pool 4Yr,Digital Services & Technology,Computacenter (UK) Limited,69566,"22,362.86", Information Management Services, Large , Programme 
UK Statistics Authority,Office for National Statistics,25-Jan-18,Consultancy,Digital Services & Technology,CSC Computer Sciences,69573,"36,000.00", Information Management Services, Large , Programme 
UK Statistics Authority,Office for National Statistics,26-Jan-18,Consultancy,"Finance, Audit & Business Development",Certus Solutions Consulting Services Ltd,69576,"80,527.50", Information Management Services, SME , Programme 
UK Statistics Authority,Office for National Statistics,26-Jan-18,ICT Outsourcing & Maintenance/Support,"Finance, Audit & Business Development",Certus Solutions Consulting Services Ltd,69576,"20,700.00", Information Management Services, SME , Programme 
UK Statistics Authority,Office for National Statistics,26-Jan-18,Surveys,Data Collection,NatCen Social Research,69577,"214,097.63", Statistical Services, Large , Programme 
UK Statistics Authority,Office for National Statistics,26-Jan-18,Capital Major Works >25K,Business Services & Development,Paramount Office Interiors Ltd,69589,"83,600.96", Major Works Titchfield, SME , Programme 
UK Statistics Authority,Office for National Statistics,26-Jan-18,Major Works Over 25K,Business Services & Development,Paramount Office Interiors Ltd,69589,"43,204.22", Major Works Titchfield, SME , Programme 
UK Statistics Authority,Office for National Statistics,26-Jan-18,Major Works Over 25K,Business Services & Development,Paramount Office Interiors Ltd,69589,"7,601.75", Major Works Titchfield, SME , Programme 
UK Statistics Authority,Office for National Statistics,26-Jan-18,Major Works Over 25K,Business Services & Development,Paramount Office Interiors Ltd,69589,442.5, Major Works Titchfield, SME , Programme 
UK Statistics Authority,Office for National Statistics,26-Jan-18,Contractors,Business Services & Development,Parity Resources Limited,69591,"6,343.92", Information Management Services, Large , Programme 
UK Statistics Authority,Office for National Statistics,26-Jan-18,Contractors,Business Services & Development,Parity Resources Limited,69591,"5,126.40", Information Management Services, Large , Programme 
UK Statistics Authority,Office for National Statistics,26-Jan-18,Contractors,Digital Services & Technology,Parity Resources Limited,69591,"5,126.40", Information Management Services, Large , Programme 
UK Statistics Authority,Office for National Statistics,26-Jan-18,Contractors,Digital Services & Technology,Parity Resources Limited,69591,"22,235.76", Information Management Services, Large , Programme 
UK Statistics Authority,Office for National Statistics,26-Jan-18,Contractors,Digital Services & Technology,Parity Resources Limited,69591,"14,343.84", Information Management Services, Large , Programme 
UK Statistics Authority,Office for National Statistics,26-Jan-18,Contractors,Economic Statistics Transformation,Parity Resources Limited,69591,"2,883.60", Information Management Services, Large , Programme 
UK Statistics Authority,Office for National Statistics,26-Jan-18,Short-Term Contract & Agency Staff ,Business Services & Development,Parity Resources Limited,69591,558.85, Information Management Services, Large , Programme 
UK Statistics Authority,Office for National Statistics,26-Jan-18,Short-Term Contract & Agency Staff ,Census,Parity Resources Limited,69591,482.26, Census Manangment Information Services, Large , Programme 
UK Statistics Authority,Office for National Statistics,26-Jan-18,Short-Term Contract & Agency Staff ,Data Collection,Parity Resources Limited,69591,"1,966.85", Information Management Services, Large , Programme 
UK Statistics Authority,Office for National Statistics,26-Jan-18,IT Purchases >2K,Digital Services & Technology,Bechtle Direct Ltd,69597,"25,530.00", Information Management Services, SME , Programme 
UK Statistics Authority,Office for National Statistics,29-Jan-18,ICT Outsourcing & Maintenance/Support,Digital Services & Technology,Crown Hosting Data Centres Limited,69918,"14,923.38", Cloud Services, SME , Programme 
UK Statistics Authority,Office for National Statistics,29-Jan-18,ICT Outsourcing & Maintenance/Support,Digital Services & Technology,Crown Hosting Data Centres Limited,69918,"41,159.02", Cloud Services, SME , Programme 
UK Statistics Authority,Office for National Statistics,29-Jan-18,IT Purchases >2K,Digital Services & Technology,SCC,69921,"507,882.31", Information Management Services, Large , Programme 
UK Statistics Authority,Office for National Statistics,29-Jan-18,Surveys,National Accounts And Economic Statistics,University of Durham,69922,"169,377.60", Statistical Services, Large , Programme 
UK Statistics Authority,Office for National Statistics,29-Jan-18,Consultancy,Census,Deloitte,69927,"593,437.20", Census Information Management Services, SME , Programme 
UK Statistics Authority,Office for National Statistics,29-Jan-18,IT Purchases >2K,Digital Services & Technology,Computacenter (UK) Limited,69931,"53,259.62", Information Management Services, Large , Programme 
UK Statistics Authority,Office for National Statistics,30-Jan-18,Telecommunications,Digital Services & Technology,Vodafone Corporate Ltd,70247,"37,258.09", Information Management Services , Large , Programme 
UK Statistics Authority,Office for National Statistics,30-Jan-18,ICT Outsourcing & Maintenance/Support,Digital Services & Technology,BT Global Services,70253,"1,386.00", Information Management Services , Large , Programme 
UK Statistics Authority,Office for National Statistics,30-Jan-18,Telecommunications,Data Collection,BT Global Services,70253,"5,458.91", Information Management Services, Large , Programme 
UK Statistics Authority,Office for National Statistics,30-Jan-18,Telecommunications,Digital Services & Technology,BT Global Services,70253,"22,632.00", Information Management Services, Large , Programme 
UK Statistics Authority,Office for National Statistics,31-Jan-18,Furniture <2K Per Item,Digital Services & Technology,The Senator Group,30000711,"4,341.72", Minor works Newport, Large , Programme 
UK Statistics Authority,Office for National Statistics,31-Jan-18,Furniture >2K Per Item,Digital Services & Technology,The Senator Group,30000711,"70,031.59", Minor works Newport, Large , Programme 
UK Statistics Authority,Office for National Statistics,31-Jan-18,ICT Outsourcing & Maintenance/Support,Digital Services & Technology,Equiniti Limited,30000712,"10,546.12", Information Management Services , Large , Programme 
UK Statistics Authority,Office for National Statistics,31-Jan-18,ICT Outsourcing & Maintenance/Support,Digital Services & Technology,Equiniti Limited,30000712,"36,666.68", Information Management Services , Large , Programme 
UK Statistics Authority,Office for National Statistics,31-Jan-18,IT Purchases >2K,Digital Services & Technology,SCC,30000713,"78,527.99", Information Management Services, Large , Programme 
UK Statistics Authority,Office for National Statistics,31-Jan-18,Telecommunications,Digital Services & Technology,BT Global Services,30000714,"67,350.88", Information Management Services, Large , Programme 
UK Statistics Authority,Office for National Statistics,31-Jan-18,ICT Outsourcing & Maintenance/Support,Digital Services & Technology,BT Global Services,30000715,"176,756.26", Information Management Services, Large , Programme 
UK Statistics Authority,Office for National Statistics,31-Jan-18,Telecommunications,Digital Services & Technology,BT Global Services,30000715,"12,694.68", Information Management Services, Large , Programme 
UK Statistics Authority,Office for National Statistics,31-Jan-18,Telecommunications,Digital Services & Technology,BT Global Services,30000715,"41,351.11", Information Management Services, Large , Programme 
UK Statistics Authority,Office for National Statistics,31-Jan-18,ICT Outsourcing & Maintenance/Support,Digital Services & Technology,RSM Partners Ltd,30000720,"52,200.00", Mainframe Support Services, SME , Programme 
UK Statistics Authority,Office for National Statistics,31-Jan-18,Capital Major Works >25K,Business Services & Development,Hawkings Cladding Ltd,30000721,"160,840.42", Major Work Newport , SME , Programme 
UK Statistics Authority,Office for National Statistics,31-Jan-18,Major Works Over 25K,Business Services & Development,Hawkings Cladding Ltd,30000721,"28,383.60", Major Work Newport, SME , Programme 
UK Statistics Authority,Office for National Statistics,31-Jan-18,Travel & Subsistence,"Finance, Audit & Business Development",Redfern Travel,30000722,"62,186.52", Travel and Accommodation Booking Service , SME , Programme 
UK Statistics Authority,Office for National Statistics,31-Jan-18,Non-IT Contractual Payments,Census,HMRC,30000723,"356,932.44", Census Information Management Services, Large , Programme 
UK Statistics Authority,Office for National Statistics,31-Jan-18,Non-IT Contractual Payments,Census,HMRC,30000723,"8,830.16", Census Information Management Services, Large , Programme 
UK Statistics Authority,Office for National Statistics,31-Jan-18,Surveys,Data Collection,NatCen Social Research,30000724,"232,027.63", Statistical Services, Large , Programme 
UK Statistics Authority,Office for National Statistics,31-Jan-18,Surveys,Data Collection,NatCen Social Research,30000725,"52,703.99", Statistical Services, Large , Programme 
